[Event "SM-blixten 2025"]
[Site "Uppsala, Sweden"]
[Date "2025.07.03"]
[Round "4.3"]
[White "Crevatin, Leo"]
[Black "Malmstig, Erik"]
[Result "0-1"]
[TimeControl "3 min + 2 sec increment starting from move 1"]
[WhiteTitle "FM"]
[BlackTitle "FM"]
[WhiteElo "2248"]
[BlackElo "2231"]

1. d4 {[%clk 00:03:02]} {[%emt 00:00:02]} Nf6 {[%clk 00:03:03]} {[%emt
00:00:01]} 2. c4 {[%clk 00:03:04]} c5 {[%clk 00:03:05]} 3. d5 {[%clk 00:03:05]}
{[%emt 00:00:02]} b5 {[%clk 00:03:06]} 4. cxb5 {[%clk 00:03:05]} {[%emt
00:00:02]} a6 {[%clk 00:03:08]} {[%emt 00:00:01]} 5. e3 {[%clk 00:03:07]} g6
{[%clk 00:03:07]} {[%emt 00:00:03]} 6. Nc3 {[%clk 00:03:08]} Bg7 {[%clk
00:03:08]} {[%emt 00:00:01]} 7. a4 {[%clk 00:03:10]} d6 {[%clk 00:03:08]}
{[%emt 00:00:02]} 8. Nf3 {[%clk 00:03:11]} O-O {[%clk 00:03:09]} {[%emt
00:00:01]} 9. Ra3 {[%clk 00:03:12]} axb5 {[%clk 00:03:09]} {[%emt 00:00:03]} 10.
Bxb5 {[%clk 00:03:13]} {[%emt 00:00:01]} Na6 {[%clk 00:03:10]} {[%emt
00:00:01]} 11. O-O {[%clk 00:03:11]} {[%emt 00:00:04]} Bb7 {[%clk 00:03:11]}
{[%emt 00:00:01]} 12. e4 {[%clk 00:03:12]} {[%emt 00:00:01]} Nb4 {[%clk
00:03:10]} {[%emt 00:00:03]} 13. Bg5 {[%clk 00:03:08]} {[%emt 00:00:06]} h6
{[%clk 00:03:10]} {[%emt 00:00:02]} 14. Bh4 {[%clk 00:03:08]} {[%emt 00:00:01]}
Ra7 {[%clk 00:03:07]} {[%emt 00:00:06]} 15. Re1 {[%clk 00:03:07]} {[%emt
00:00:04]} Ng4 {[%clk 00:03:04]} {[%emt 00:00:03]} 16. h3 {[%clk 00:03:02]}
{[%emt 00:00:07]} Ne5 {[%clk 00:03:05]} {[%emt 00:00:01]} 17. Nd2 {[%clk
00:02:58]} {[%emt 00:00:07]} Ned3 {[%clk 00:02:58]} {[%emt 00:00:08]} 18. Re3
{[%clk 00:02:48]} {[%emt 00:00:13]} Ne5 {[%clk 00:02:08]} {[%emt 00:00:53]} 19.
f4 {[%clk 00:02:38]} {[%emt 00:00:10]} g5 {[%clk 00:02:06]} {[%emt 00:00:05]}
20. fxe5 {[%clk 00:02:25]} {[%emt 00:00:16]} gxh4 {[%clk 00:02:05]} {[%emt
00:00:02]} 21. Nf3 {[%clk 00:02:26]} f5 {[%clk 00:01:54]} {[%emt 00:00:13]} 22.
exf5 {[%clk 00:02:21]} {[%emt 00:00:06]} Rxf5 {[%clk 00:01:55]} {[%emt
00:00:02]} 23. exd6 {[%clk 00:02:19]} {[%emt 00:00:04]} Qxd6 {[%clk 00:01:54]}
{[%emt 00:00:03]} 24. Nxh4 {[%clk 00:02:13]} {[%emt 00:00:08]} Rf4 {[%clk
00:01:51]} {[%emt 00:00:04]} 25. Nf3 {[%clk 00:01:56]} {[%emt 00:00:19]} Nxd5
{[%clk 00:01:33]} {[%emt 00:00:20]} 26. Nxd5 {[%clk 00:01:50]} {[%emt
00:00:09]} Qxd5 {[%clk 00:01:34]} {[%emt 00:00:01]} 27. Qxd5+ {[%clk 00:01:48]}
{[%emt 00:00:04]} Bxd5 {[%clk 00:01:35]} {[%emt 00:00:01]} 28. Rad3 {[%clk
00:01:40]} {[%emt 00:00:10]} e6 {[%clk 00:01:35]} {[%emt 00:00:02]} 29. Kh2
{[%clk 00:01:25]} {[%emt 00:00:17]} Bxb2 {[%clk 00:01:34]} {[%emt 00:00:03]} 30.
Ne5 {[%clk 00:01:18]} {[%emt 00:00:10]} Rg7 {[%clk 00:01:32]} {[%emt 00:00:03]}
31. Rg3 {[%clk 00:01:17]} {[%emt 00:00:03]} Bxe5 {[%clk 00:01:32]} {[%emt
00:00:02]} 32. Rxg7+ {[%clk 00:01:12]} {[%emt 00:00:07]} Kxg7 {[%clk 00:01:33]}
{[%emt 00:00:01]} 33. Kg1 {[%clk 00:01:13]} {[%emt 00:00:01]} Rd4 {[%clk
00:01:30]} {[%emt 00:00:05]} 34. Re3 {[%clk 00:01:12]} {[%emt 00:00:03]} Rd1+
{[%clk 00:01:28]} {[%emt 00:00:04]} 0-1

[Event "SM-blixten 2025"]
[Site "Uppsala, Sweden"]
[Date "2025.07.03"]
[Round "5.9"]
[White "Strand, Sixten"]
[Black "Sandberg, Lucas"]
[Result "1/2-1/2"]
[TimeControl "3 min + 2 sec increment starting from move 1"]
[WhiteElo "2037"]
[BlackElo "2274"]

1. e4 {[%clk 00:03:03]} g6 {[%clk 00:03:04]} {[%emt 00:00:01]} 2. d4 {[%clk
00:03:02]} {[%emt 00:00:02]} c6 {[%clk 00:03:05]} 3. Nc3 {[%clk 00:03:02]}
{[%emt 00:00:03]} d5 {[%clk 00:03:07]} 4. e5 {[%clk 00:03:00]} {[%emt
00:00:05]} Bg7 {[%clk 00:03:08]} 5. h3 {[%clk 00:03:01]} {[%emt 00:00:01]} f6
{[%clk 00:03:07]} {[%emt 00:00:03]} 6. f4 {[%clk 00:03:01]} {[%emt 00:00:01]}
e6 {[%clk 00:02:56]} {[%emt 00:00:13]} 7. Nf3 {[%clk 00:03:01]} {[%emt
00:00:02]} Ne7 {[%clk 00:02:57]} 8. Bd3 {[%clk 00:02:37]} {[%emt 00:00:26]} O-O
{[%clk 00:02:58]} {[%emt 00:00:02]} 9. Be3 {[%clk 00:02:29]} {[%emt 00:00:10]}
Nd7 {[%clk 00:02:56]} {[%emt 00:00:03]} 10. Qe2 {[%clk 00:02:24]} {[%emt
00:00:07]} c5 {[%clk 00:02:57]} {[%emt 00:00:01]} 11. Bb5 {[%clk 00:02:14]}
{[%emt 00:00:12]} cxd4 {[%clk 00:02:54]} {[%emt 00:00:06]} 12. Bxd4 {[%clk
00:02:08]} {[%emt 00:00:08]} Nc6 {[%clk 00:02:42]} {[%emt 00:00:14]} 13. Bxc6
{[%clk 00:02:03]} {[%emt 00:00:06]} bxc6 {[%clk 00:02:44]} 14. exf6 {[%clk
00:02:03]} {[%emt 00:00:02]} Nxf6 {[%clk 00:02:44]} 15. O-O-O {[%clk 00:01:57]}
{[%emt 00:00:08]} Qa5 {[%clk 00:02:45]} {[%emt 00:00:02]} 16. Be5 {[%clk
00:01:38]} {[%emt 00:00:21]} c5 {[%clk 00:02:42]} {[%emt 00:00:05]} 17. Qb5
{[%clk 00:01:35]} {[%emt 00:00:05]} Qxb5 {[%clk 00:02:40]} {[%emt 00:00:04]} 18.
Nxb5 {[%clk 00:01:36]} {[%emt 00:00:01]} Bd7 {[%clk 00:02:40]} {[%emt
00:00:02]} 19. c4 {[%clk 00:01:26]} {[%emt 00:00:12]} Bxb5 {[%clk 00:02:22]}
{[%emt 00:00:20]} 20. cxb5 {[%clk 00:01:24]} {[%emt 00:00:03]} d4 {[%clk
00:02:22]} {[%emt 00:00:01]} 21. Ng5 {[%clk 00:01:18]} {[%emt 00:00:09]} Rfe8
{[%clk 00:02:22]} {[%emt 00:00:03]} 22. Rhe1 {[%clk 00:01:12]} {[%emt
00:00:07]} Nd5 {[%clk 00:02:18]} {[%emt 00:00:06]} 23. Bxg7 {[%clk 00:01:07]}
Kxg7 {[%clk 00:02:20]} 24. Nxe6+ {[%clk 00:01:05]} {[%emt 00:00:04]} Kf6 {[%clk
00:02:20]} {[%emt 00:00:01]} 25. Ng5 {[%clk 00:00:49]} {[%emt 00:00:18]} Nxf4
{[%clk 00:02:09]} {[%emt 00:00:13]} 26. Ne4+ {[%clk 00:00:49]} Kg7 {[%clk
00:02:08]} {[%emt 00:00:03]} 27. Kd2 {[%clk 00:00:21]} {[%emt 00:00:30]} Re5
{[%clk 00:02:05]} {[%emt 00:00:05]} 28. Nf2 {[%clk 00:00:12]} {[%emt 00:00:11]}
Rae8 {[%clk 00:02:03]} {[%emt 00:00:03]} 29. Rxe5 {[%clk 00:00:13]} {[%emt
00:00:03]} Rxe5 {[%clk 00:02:05]} 30. Re1 {[%clk 00:00:07]} {[%emt 00:00:08]}
Rxe1 31. Kxe1 {[%clk 00:00:08]} Nxg2+ {[%clk 00:01:40]} {[%emt 00:00:20]} 32.
Ke2 {[%clk 00:00:09]} Nf4+ {[%clk 00:01:41]} 33. Kf3 {[%clk 00:00:09]} {[%emt
00:00:04]} Nd5 {[%clk 00:01:41]} {[%emt 00:00:02]} 34. Ne4 {[%clk 00:00:07]}
{[%emt 00:00:04]} c4 {[%clk 00:01:41]} {[%emt 00:00:02]} 35. Ke2 {[%clk
00:00:05]} {[%emt 00:00:05]} h6 {[%clk 00:01:33]} {[%emt 00:00:09]} 36. Nd6
{[%clk 00:00:05]} {[%emt 00:00:02]} c3 {[%clk 00:01:32]} {[%emt 00:00:03]} 37.
bxc3 {[%clk 00:00:06]} {[%emt 00:00:02]} Nxc3+ {[%clk 00:01:32]} 38. Kd3 {[%clk
00:00:06]} {[%emt 00:00:01]} Nxa2 {[%clk 00:01:33]} {[%emt 00:00:01]} 39. Kxd4
{[%clk 00:00:07]} {[%emt 00:00:02]} g5 {[%clk 00:01:30]} {[%emt 00:00:05]} 40.
Ke5 {[%clk 00:00:08]} Kg6 {[%clk 00:01:31]} {[%emt 00:00:01]} 41. Nc8 {[%clk
00:00:07]} {[%emt 00:00:03]} Nb4 {[%clk 00:00:55]} {[%emt 00:00:38]} 42. Nxa7
{[%clk 00:00:07]} {[%emt 00:00:01]} g4 {[%clk 00:00:56]} {[%emt 00:00:02]} 43.
hxg4 {[%clk 00:00:08]} {[%emt 00:00:01]} Kg5 {[%clk 00:00:57]} 44. Nc6 {[%clk
00:00:08]} {[%emt 00:00:03]} Nd3+ {[%clk 00:00:53]} {[%emt 00:00:06]} 45. Ke4
{[%clk 00:00:08]} {[%emt 00:00:02]} Nc5+ {[%clk 00:00:53]} {[%emt 00:00:02]} 46.
Kf3 {[%clk 00:00:08]} {[%emt 00:00:01]} Nd7 {[%clk 00:00:54]} {[%emt 00:00:02]}
47. Nd4 {[%clk 00:00:08]} {[%emt 00:00:02]} h5 {[%clk 00:00:50]} {[%emt
00:00:06]} 48. gxh5 Kxh5 {[%clk 00:00:51]} 49. Ke4 {[%clk 00:00:10]} Kg6 {[%clk
00:00:52]} 50. Kd5 {[%clk 00:00:11]} Kf7 {[%clk 00:00:53]} 51. Kc6 {[%clk
00:00:13]} Ke7 {[%clk 00:00:55]} {[%emt 00:00:02]} 52. Nf5+ {[%clk 00:00:13]}
Kd8 {[%clk 00:00:56]} 53. Nd6 {[%clk 00:00:12]} {[%emt 00:00:04]} Ke7 {[%clk
00:00:56]} {[%emt 00:00:01]} 54. Nc8+ {[%clk 00:00:13]} {[%emt 00:00:02]} Kd8
{[%clk 00:00:57]} 1/2-1/2

[Event "SM-blixten 2025"]
[Site "Uppsala, Sweden"]
[Date "2025.07.03"]
[Round "7.5"]
[White "Nilsson, Joakim"]
[Black "Ostlund, Joar"]
[Result "1/2-1/2"]
[TimeControl "3 min + 2 sec increment starting from move 1"]
[WhiteTitle "FM"]
[BlackTitle "FM"]
[WhiteElo "2208"]
[BlackElo "2322"]

1. Nf3 {[%clk 00:03:01]} {[%emt 00:00:02]} d5 {[%clk 00:03:02]} {[%emt
00:00:02]} 2. c4 {[%clk 00:03:02]} {[%emt 00:00:02]} e6 {[%clk 00:03:02]}
{[%emt 00:00:01]} 3. b3 {[%clk 00:03:01]} {[%emt 00:00:03]} Nf6 {[%clk
00:03:03]} {[%emt 00:00:01]} 4. Bb2 {[%clk 00:03:03]} Be7 {[%clk 00:03:02]}
{[%emt 00:00:02]} 5. g3 {[%clk 00:03:03]} {[%emt 00:00:03]} O-O {[%clk
00:03:02]} {[%emt 00:00:01]} 6. Bg2 {[%clk 00:03:04]} {[%emt 00:00:01]} b6
{[%clk 00:03:03]} {[%emt 00:00:02]} 7. O-O {[%clk 00:03:04]} {[%emt 00:00:01]}
Bb7 {[%clk 00:03:04]} {[%emt 00:00:01]} 8. Ne5 {[%clk 00:03:05]} {[%emt
00:00:01]} c5 {[%clk 00:02:58]} {[%emt 00:00:08]} 9. d4 {[%clk 00:03:03]}
{[%emt 00:00:03]} cxd4 {[%clk 00:02:45]} {[%emt 00:00:15]} 10. Qxd4 {[%clk
00:02:58]} {[%emt 00:00:07]} Nbd7 {[%clk 00:02:06]} {[%emt 00:00:41]} 11. Nc3
{[%clk 00:02:52]} {[%emt 00:00:08]} Bc5 {[%clk 00:01:34]} {[%emt 00:00:34]} 12.
Qf4 {[%clk 00:02:47]} {[%emt 00:00:07]} Nh5 {[%clk 00:01:26]} {[%emt 00:00:11]}
13. Qg4 {[%clk 00:02:36]} {[%emt 00:00:12]} Nhf6 {[%clk 00:01:11]} {[%emt
00:00:18]} 14. Qf4 {[%clk 00:02:29]} {[%emt 00:00:08]} Nh5 {[%clk 00:00:23]}
{[%emt 00:00:50]} 15. Qg4 {[%clk 00:02:31]} Nhf6 {[%clk 00:00:13]} {[%emt
00:00:12]} 16. Qf4 {[%clk 00:02:27]} {[%emt 00:00:06]} Nh5 {[%clk 00:00:14]}
{[%emt 00:00:01]} 1/2-1/2

[Event "SM-blixten 2025"]
[Site "Uppsala, Sweden"]
[Date "2025.07.03"]
[Round "9.1"]
[White "Grahn, Vidar"]
[Black "Galperin, Platon"]
[Result "0-1"]
[TimeControl "3 min + 2 sec increment starting from move 1"]
[WhiteTitle "FM"]
[BlackTitle "GM"]
[WhiteElo "2239"]
[BlackElo "2506"]

1. e4 {[%clk 00:03:03]} {[%emt 00:11:04]} g6 {[%clk 00:03:02]} {[%emt
00:00:02]} 2. d4 {[%clk 00:03:04]} {[%emt 00:00:02]} d6 {[%clk 00:03:03]} 3. c4
{[%clk 00:03:06]} {[%emt 00:00:01]} Bg7 {[%clk 00:03:04]} 4. Nc3 {[%clk
00:03:07]} {[%emt 00:00:01]} Nf6 {[%emt 00:00:02]} 5. Be2 O-O {[%clk 00:03:05]}
{[%emt 00:00:02]} 6. Be3 {[%clk 00:03:10]} c5 {[%clk 00:02:56]} {[%emt
00:00:11]} 7. d5 {[%clk 00:03:10]} {[%emt 00:00:01]} Qb6 {[%clk 00:02:57]} 8.
Qc2 {[%clk 00:03:06]} {[%emt 00:00:05]} Ng4 {[%clk 00:02:55]} {[%emt 00:00:04]}
9. Bxg4 {[%clk 00:02:55]} {[%emt 00:00:13]} Bxg4 {[%clk 00:02:56]} {[%emt
00:00:02]} 10. f3 {[%clk 00:02:57]} Bd7 {[%clk 00:02:57]} {[%emt 00:00:01]} 11.
Nge2 {[%clk 00:02:48]} {[%emt 00:00:11]} Qa6 {[%clk 00:02:58]} {[%emt
00:00:01]} 12. Qb3 {[%clk 00:02:31]} {[%emt 00:00:20]} Qb6 {[%clk 00:02:33]}
{[%emt 00:00:27]} 13. O-O {[%clk 00:02:12]} {[%emt 00:00:21]} Na6 {[%clk
00:02:34]} {[%emt 00:00:01]} 14. Qc2 {[%clk 00:02:01]} {[%emt 00:00:12]} Nc7
{[%clk 00:02:34]} {[%emt 00:00:03]} 15. a4 {[%clk 00:01:54]} {[%emt 00:00:09]}
Na6 {[%clk 00:02:35]} {[%emt 00:00:01]} 16. a5 {[%clk 00:01:50]} {[%emt
00:00:06]} Nb4 {[%clk 00:02:35]} {[%emt 00:00:02]} 17. Qd2 {[%clk 00:01:43]}
{[%emt 00:00:07]} Qa6 {[%clk 00:02:35]} {[%emt 00:00:04]} 18. Bh6 {[%clk
00:01:38]} {[%emt 00:00:06]} Qxc4 {[%clk 00:02:33]} {[%emt 00:00:04]} 19. Bxg7
{[%clk 00:01:36]} {[%emt 00:00:04]} Kxg7 {[%clk 00:02:33]} {[%emt 00:00:01]} 20.
h4 {[%clk 00:01:25]} {[%emt 00:00:14]} f6 {[%clk 00:02:21]} {[%emt 00:00:15]}
21. h5 {[%clk 00:01:22]} {[%emt 00:00:04]} g5 {[%clk 00:02:22]} {[%emt
00:00:02]} 22. f4 {[%clk 00:01:13]} {[%emt 00:00:11]} h6 {[%clk 00:02:17]}
{[%emt 00:00:07]} 23. e5 {[%clk 00:01:09]} {[%emt 00:00:06]} Qd3 {[%clk
00:02:10]} {[%emt 00:00:08]} 24. Qxd3 {[%clk 00:01:00]} {[%emt 00:00:11]} Nxd3
{[%clk 00:02:10]} {[%emt 00:00:02]} 25. e6 {[%clk 00:00:59]} {[%emt 00:00:03]}
Be8 {[%clk 00:02:09]} {[%emt 00:00:03]} 26. g4 {[%clk 00:00:53]} {[%emt
00:00:09]} f5 {[%clk 00:02:02]} {[%emt 00:00:09]} 27. fxg5 {[%clk 00:00:49]}
{[%emt 00:00:06]} hxg5 {[%clk 00:02:03]} {[%emt 00:00:01]} 28. Ng3 {[%clk
00:00:45]} {[%emt 00:00:05]} f4 {[%clk 00:02:00]} {[%emt 00:00:05]} 29. Nf5+
{[%clk 00:00:38]} {[%emt 00:00:09]} Rxf5 {[%clk 00:01:56]} {[%emt 00:00:06]} 30.
gxf5 {[%clk 00:00:39]} Kf6 {[%clk 00:01:49]} {[%emt 00:00:09]} 31. Kg2 {[%clk
00:00:24]} {[%emt 00:00:16]} Bxh5 {[%clk 00:01:42]} {[%emt 00:00:10]} 32. Rh1
{[%clk 00:00:23]} {[%emt 00:00:03]} Rh8 {[%clk 00:01:27]} {[%emt 00:00:17]} 33.
b3 {[%clk 00:00:05]} {[%emt 00:00:20]} Kxf5 {[%clk 00:01:26]} {[%emt 00:00:03]}
34. a6 {[%clk 00:00:05]} {[%emt 00:00:02]} bxa6 {[%clk 00:01:23]} {[%emt
00:00:05]} 35. Rhb1 {[%clk 00:00:03]} {[%emt 00:00:04]} Ne5 {[%clk 00:01:20]}
{[%emt 00:00:05]} 36. Rxa6 {[%emt 00:00:02]} Bf3+ {[%clk 00:01:20]} {[%emt
00:00:01]} 37. Kf2 {[%clk 00:00:04]} {[%emt 00:00:02]} g4 {[%clk 00:01:18]}
{[%emt 00:00:04]} 38. Rxa7 {[%clk 00:00:04]} {[%emt 00:00:02]} g3+ {[%clk
00:01:19]} {[%emt 00:00:01]} 39. Ke1 {[%clk 00:00:05]} Rh2 {[%clk 00:01:05]}
{[%emt 00:00:16]} 40. Rxe7 {[%clk 00:00:05]} {[%emt 00:00:02]} Nd3+ {[%clk
00:01:05]} {[%emt 00:00:02]} 41. Kf1 {[%clk 00:00:06]} {[%emt 00:00:01]} Rh1#
{[%clk 00:01:06]} {[%emt 00:00:02]} 0-1

[Event "SM-blixten 2025"]
[Site "Uppsala, Sweden"]
[Date "2025.07.03"]
[Round "10.7"]
[White "Rosberg, Simon"]
[Black "Pantzar, Milton"]
[Result "0-1"]
[TimeControl "3 min + 2 sec increment starting from move 1"]
[WhiteTitle "FM"]
[BlackTitle "IM"]
[WhiteElo "2303"]
[BlackElo "2444"]

1. c4 {[%clk 00:03:02]} {[%emt 00:00:02]} e6 {[%clk 00:03:02]} {[%emt
00:00:02]} 2. Nf3 {[%clk 00:03:02]} {[%emt 00:00:02]} d5 {[%clk 00:03:03]}
{[%emt 00:00:01]} 3. g3 {[%clk 00:03:03]} {[%emt 00:00:02]} Nf6 {[%clk
00:03:04]} {[%emt 00:00:01]} 4. Bg2 {[%clk 00:03:04]} {[%emt 00:00:01]} b6
{[%clk 00:03:02]} {[%emt 00:00:04]} 5. O-O {[%clk 00:03:02]} {[%emt 00:00:04]}
Bb7 {[%clk 00:03:03]} {[%emt 00:00:01]} 6. b3 {[%clk 00:03:01]} {[%emt
00:00:02]} Be7 {[%clk 00:03:00]} {[%emt 00:00:05]} 7. Bb2 {[%clk 00:03:02]}
{[%emt 00:00:01]} O-O {[%clk 00:02:56]} {[%emt 00:00:06]} 8. d4 {[%clk
00:03:02]} {[%emt 00:00:02]} dxc4 {[%clk 00:02:37]} {[%emt 00:00:21]} 9. bxc4
{[%clk 00:03:02]} {[%emt 00:00:02]} c5 {[%clk 00:02:38]} {[%emt 00:00:01]} 10.
d5 {[%clk 00:02:30]} {[%emt 00:00:34]} exd5 {[%clk 00:02:37]} {[%emt 00:00:03]}
11. Nh4 {[%clk 00:02:31]} {[%emt 00:00:01]} Qd7 {[%clk 00:02:23]} {[%emt
00:00:17]} 12. Nc3 {[%clk 00:02:14]} {[%emt 00:00:19]} d4 {[%clk 00:02:13]}
{[%emt 00:00:12]} 13. Nb5 {[%clk 00:00:26]} {[%emt 00:01:50]} a6 {[%clk
00:02:04]} {[%emt 00:00:11]} 14. Bxb7 {[%clk 00:00:15]} {[%emt 00:00:13]} Qxb7
{[%clk 00:02:01]} {[%emt 00:00:05]} 15. Na3 {[%clk 00:00:13]} {[%emt 00:00:04]}
Nc6 {[%clk 00:01:57]} {[%emt 00:00:06]} 16. Rb1 {[%clk 00:00:12]} {[%emt
00:00:03]} Rfd8 {[%clk 00:01:51]} {[%emt 00:00:08]} 17. Bc1 {[%clk 00:00:10]}
{[%emt 00:00:04]} Nb4 {[%clk 00:01:35]} {[%emt 00:00:17]} 18. Qb3 {[%clk
00:00:03]} {[%emt 00:00:09]} Qe4 {[%clk 00:01:26]} {[%emt 00:00:11]} 19. Bd2
{[%clk 00:00:03]} {[%emt 00:00:03]} Bf8 {[%clk 00:01:11]} {[%emt 00:00:17]} 20.
Bxb4 {[%emt 00:00:02]} cxb4 21. Nc2 a5 {[%emt 00:00:05]} 22. Qd3 {[%emt
00:00:02]} 0-1

[Event "SM-blixten 2025"]
[Site "Uppsala, Sweden"]
[Date "2025.07.03"]
[Round "1.2"]
[White "Seo, Jung Min"]
[Black "Hamilton, Olov"]
[Result "1-0"]
[TimeControl "3 min + 2 sec increment starting from move 1"]
[WhiteTitle "IM"]
[WhiteElo "2468"]
[BlackElo "1913"]

1. e4 {[%clk 00:03:04]} {[%emt 00:04:50]} c5 {[%clk 00:03:03]} {[%emt
00:00:01]} 2. Nf3 {[%clk 00:03:05]} d6 {[%clk 00:03:04]} {[%emt 00:00:01]} 3.
d4 {[%clk 00:03:06]} cxd4 {[%clk 00:03:06]} {[%emt 00:00:02]} 4. Nxd4 {[%clk
00:03:07]} Nf6 {[%clk 00:03:07]} 5. Nc3 {[%clk 00:03:08]} a6 {[%clk 00:03:08]}
{[%emt 00:00:01]} 6. Bd3 {[%clk 00:03:10]} Nc6 {[%clk 00:03:09]} {[%emt
00:00:02]} 7. Nxc6 {[%clk 00:02:59]} {[%emt 00:00:12]} bxc6 {[%clk 00:03:09]}
{[%emt 00:00:02]} 8. O-O {[%clk 00:02:58]} {[%emt 00:00:02]} e5 {[%clk
00:03:06]} {[%emt 00:00:06]} 9. Qe2 {[%clk 00:02:55]} {[%emt 00:00:05]} Be7
{[%clk 00:03:05]} {[%emt 00:00:03]} 10. Na4 {[%clk 00:02:56]} {[%emt 00:00:02]}
O-O {[%clk 00:03:00]} {[%emt 00:00:06]} 11. c4 {[%clk 00:02:56]} {[%emt
00:00:02]} Be6 {[%clk 00:02:50]} {[%emt 00:00:12]} 12. Bg5 {[%clk 00:02:43]}
{[%emt 00:00:15]} h6 {[%clk 00:02:50]} {[%emt 00:00:03]} 13. Bh4 {[%clk
00:02:40]} {[%emt 00:00:04]} Nd7 {[%clk 00:02:39]} {[%emt 00:00:12]} 14. Bg3
{[%clk 00:02:41]} {[%emt 00:00:02]} f5 {[%clk 00:01:43]} {[%emt 00:00:58]} 15.
exf5 {[%clk 00:02:41]} {[%emt 00:00:01]} Bxf5 {[%clk 00:01:44]} {[%emt
00:00:01]} 16. Bxf5 {[%clk 00:02:42]} {[%emt 00:00:01]} Rxf5 {[%clk 00:01:45]}
{[%emt 00:00:01]} 17. Qe4 {[%clk 00:02:42]} {[%emt 00:00:01]} Rf6 {[%clk
00:01:24]} {[%emt 00:00:24]} 18. Qxc6 {[%clk 00:02:41]} {[%emt 00:00:04]} Rc8
{[%clk 00:00:43]} {[%emt 00:00:42]} 19. Qxa6 {[%clk 00:02:35]} {[%emt
00:00:07]} d5 {[%clk 00:00:37]} {[%emt 00:00:09]} 20. Qb5 {[%clk 00:02:30]}
{[%emt 00:00:07]} dxc4 {[%clk 00:00:28]} {[%emt 00:00:12]} 21. Rad1 {[%clk
00:02:26]} {[%emt 00:00:05]} Rd6 {[%clk 00:00:18]} {[%emt 00:00:12]} 22. Rxd6
{[%clk 00:02:25]} {[%emt 00:00:03]} Bxd6 {[%clk 00:00:19]} 23. Qd5+ {[%clk
00:02:25]} {[%emt 00:00:01]} 1-0

[Event "SM-blixten 2025"]
[Site "Uppsala, Sweden"]
[Date "2025.07.03"]
[Round "2.8"]
[White "Dingertz, Erik"]
[Black "Religa, Marek"]
[Result "0-1"]
[TimeControl "3 min + 2 sec increment starting from move 1"]
[WhiteElo "2121"]
[BlackElo "2227"]

1. Nf3 {[%emt 00:00:02]} g6 {[%emt 00:00:01]} 2. d4 {[%clk 00:03:01]} {[%emt
00:00:02]} Bg7 {[%clk 00:03:06]} 3. c4 {[%clk 00:03:02]} {[%emt 00:00:02]} d6
{[%clk 00:03:06]} {[%emt 00:00:01]} 4. Nc3 {[%clk 00:03:02]} {[%emt 00:00:02]}
Nc6 {[%clk 00:03:03]} {[%emt 00:00:05]} 5. d5 {[%clk 00:02:50]} {[%emt
00:00:14]} Ne5 {[%clk 00:03:05]} 6. Nxe5 {[%clk 00:02:50]} {[%emt 00:00:02]}
Bxe5 {[%clk 00:03:06]} 7. e4 {[%clk 00:02:46]} {[%emt 00:00:05]} Nf6 {[%clk
00:02:50]} {[%emt 00:00:18]} 8. Bd3 {[%clk 00:02:36]} {[%emt 00:00:12]} O-O
{[%clk 00:02:51]} {[%emt 00:00:01]} 9. O-O {[%clk 00:02:33]} {[%emt 00:00:05]}
c6 {[%clk 00:02:51]} {[%emt 00:00:02]} 10. h3 {[%clk 00:02:29]} {[%emt
00:00:06]} cxd5 {[%clk 00:02:50]} {[%emt 00:00:04]} 11. exd5 {[%clk 00:02:17]}
{[%emt 00:00:14]} Nd7 {[%clk 00:02:44]} {[%emt 00:00:08]} 12. Be3 {[%clk
00:02:13]} {[%emt 00:00:05]} Nc5 {[%clk 00:02:40]} {[%emt 00:00:06]} 13. Bc2
{[%clk 00:02:13]} {[%emt 00:00:02]} a5 {[%clk 00:02:38]} {[%emt 00:00:04]} 14.
f4 {[%clk 00:01:55]} {[%emt 00:00:20]} Bg7 {[%clk 00:02:35]} {[%emt 00:00:06]}
15. Bd4 {[%clk 00:01:55]} Nd7 {[%clk 00:01:58]} {[%emt 00:00:39]} 16. Bxg7
{[%clk 00:01:35]} {[%emt 00:00:22]} Kxg7 {[%clk 00:01:59]} 17. Kh1 {[%clk
00:00:55]} {[%emt 00:00:42]} Qb6 {[%clk 00:01:56]} {[%emt 00:00:05]} 18. b3
{[%clk 00:00:53]} {[%emt 00:00:04]} Nf6 {[%clk 00:01:53]} {[%emt 00:00:06]} 19.
f5 {[%clk 00:00:35]} {[%emt 00:00:19]} Bd7 {[%clk 00:01:25]} {[%emt 00:00:30]}
20. Qe1 {[%clk 00:00:28]} {[%emt 00:00:09]} Rae8 {[%clk 00:01:21]} {[%emt
00:00:07]} 21. Qh4 {[%clk 00:00:15]} {[%emt 00:00:14]} Qe3 {[%clk 00:01:11]}
{[%emt 00:00:13]} 22. Rf3 {[%clk 00:00:07]} {[%emt 00:00:09]} Qd2 {[%clk
00:01:05]} {[%emt 00:00:08]} 23. Qf2 {[%clk 00:00:05]} {[%emt 00:00:04]} Qxf2
{[%clk 00:01:03]} {[%emt 00:00:05]} 24. Rxf2 {[%clk 00:00:05]} {[%emt
00:00:01]} g5 {[%clk 00:00:53]} {[%emt 00:00:12]} 25. Re1 {[%clk 00:00:03]}
{[%emt 00:00:04]} h5 {[%clk 00:00:30]} {[%emt 00:00:24]} 26. Rfe2 {[%clk
00:00:05]} {[%emt 00:00:02]} Ng8 {[%clk 00:00:29]} {[%emt 00:00:03]} 27. g4
{[%clk 00:00:05]} hxg4 {[%clk 00:00:26]} {[%emt 00:00:06]} 28. hxg4 {[%emt
00:00:01]} f6 {[%clk 00:00:25]} {[%emt 00:00:02]} 29. Rh2 {[%clk 00:00:04]}
{[%emt 00:00:04]} Nh6 {[%clk 00:00:23]} {[%emt 00:00:04]} 30. Bd1 {[%clk
00:00:04]} {[%emt 00:00:02]} Rh8 {[%clk 00:00:24]} {[%emt 00:00:01]} 31. Re3
{[%clk 00:00:05]} {[%emt 00:00:01]} Nf7 {[%clk 00:00:25]} {[%emt 00:00:02]} 32.
Reh3 {[%clk 00:00:06]} {[%emt 00:00:01]} Rxh3 {[%clk 00:00:25]} {[%emt
00:00:01]} 33. Rxh3 {[%clk 00:00:07]} Ne5 {[%clk 00:00:25]} {[%emt 00:00:02]}
34. a3 {[%clk 00:00:05]} {[%emt 00:00:05]} Rc8 {[%clk 00:00:24]} {[%emt
00:00:02]} 35. Be2 {[%clk 00:00:05]} {[%emt 00:00:02]} b6 {[%clk 00:00:19]}
{[%emt 00:00:07]} 36. Nb1 {[%clk 00:00:05]} {[%emt 00:00:03]} b5 {[%clk
00:00:19]} {[%emt 00:00:02]} 37. Nd2 {[%clk 00:00:05]} {[%emt 00:00:02]} b4
{[%clk 00:00:12]} {[%emt 00:00:09]} 38. axb4 {[%clk 00:00:04]} {[%emt
00:00:02]} axb4 {[%clk 00:00:13]} {[%emt 00:00:01]} 39. Nf3 {[%clk 00:00:05]}
{[%emt 00:00:01]} 0-1